fUST/lending_fUST_20241227
["ID","MTS","AMOUNT","RATE_DAILY","PERIOD"]
[346744335,1735260584814,-500.0,0.00011894,2]
[346744336,1735260584835,-500.0,0.00012168,2]
[346744337,1735260584856,-500.0,0.00012953,2]
[346744338,1735260584878,-474.01280413,0.00013774,2]
[346744339,1735260584900,-500.0,0.00013774,2]
[346744340,1735260584922,-500.0,0.00013774,2]
[346744341,1735260584943,-500.0,0.00013774,2]
[346744342,1735260584963,-500.0,0.00013774,2]
[346744343,1735260584984,-500.0,0.00013774,2]
[346744344,1735260585006,-500.0,0.00013774,2]
[346744345,1735260585027,-500.0,0.00013774,2]
[346744346,1735260585048,-500.0,0.00013774,2]
[346744347,1735260585143,-500.0,0.00013774,2]
[346744348,1735260585165,-720.88,0.00013774,2]
[346744349,1735260585187,-500.0,0.00013774,2]
[346744350,1735260585208,-500.0,0.00013774,2]
[346744351,1735260585229,-341.02,0.00013774,2]
[346744352,1735260585252,-635.92,0.00013774,2]
[346744353,1735260585274,-500.0,0.00013774,2]
[346744354,1735260585295,-368.07339967,0.00013774,2]
[346744355,1735260585316,-500.0,0.00013774,2]
[346744356,1735260585338,-1196.03,0.00013774,2]
[346744357,1735260585360,-500.0,0.00013774,2]
[346744358,1735260585383,-500.0,0.00013774,2]
[346744359,1735260585407,-644.67,0.00013774,2]
[346744360,1735260585428,-502.33478179,0.00013774,2]
[346744361,1735260585450,-844.23,0.00013774,2]
[346744362,1735260585472,-500.0,0.00013774,2]
[346744363,1735260585493,-500.0,0.00013774,2]
[346744364,1735260585515,-500.0,0.00013774,2]
[346744365,1735260585536,-351.91541354,0.00013774,2]
[346744366,1735260585987,-607.80998396,0.0001162,2]
[346744367,1735260586008,-590.42667097,0.000129,2]
[346744368,1735260586031,-148.08458646,0.00013774,2]
[346744369,1735260586051,-617.93,0.00013774,2]
[346744370,1735260586073,-500.0,0.00013774,2]
[346744371,1735260586097,-500.0,0.00013774,2]
[346744372,1735260586119,-500.0,0.00013774,2]
[346744373,1735260586141,-500.0,0.00013774,2]
[346744374,1735260586162,-500.0,0.00013774,2]
[346744375,1735260586183,-859.18,0.00013774,2]
[346744376,1735260586204,-168.07,0.00013774,2]
[346744377,1735260586226,-1106.95,0.00013774,2]
[346744378,1735260586247,-500.0,0.00013774,2]
[346744379,1735260586268,-501.88624608,0.00013774,2]
[346744380,1735260586289,-500.0,0.00013774,2]
[346744381,1735260586406,-500.0,0.00013774,2]
[346744382,1735260586428,-500.0,0.00013774,2]
[346744383,1735260586451,-500.0,0.00013774,2]
[346744384,1735260586472,-500.0,0.00013774,2]
[346744385,1735260586493,-500.0,0.00013774,2]
[346744386,1735260586514,-500.0,0.00013774,2]
[346744387,1735260586535,-500.0,0.00013774,2]
[346744388,1735260586556,-500.0,0.00013774,2]
[346744389,1735260586576,-500.0,0.00013774,2]
[346744390,1735260586597,-500.0,0.00013774,2]
[346744391,1735260586618,-500.0,0.00013774,2]
[346744392,1735260586638,-500.0,0.00013774,2]
[346744393,1735260586664,-596.5,0.00013774,2]
[346744394,1735260586685,-500.0,0.00013774,2]
[346744395,1735260586707,-12325.62764574,0.00013774,2]
[346744450,1735260635652,-3128.09342511,0.00011504,2]
[346744451,1735260635662,-300.0,0.00011619,2]
[346744452,1735260635671,-300.0,0.00011619,2]
[346744453,1735260635681,-500.0,0.0001162,2]
[346744454,1735260635691,-500.0,0.0001162,2]
[346744455,1735260635700,-594.31163122,0.0001162,2]
[346744456,1735260635712,-32.46648063,0.0001162,2]
[346744457,1735260635722,-500.0,0.0001162,2]
[346744458,1735260635731,-500.0,0.0001162,2]
[346744459,1735260635740,-501.31531326,0.0001162,2]
[346744460,1735260635749,-514.94,0.0001162,2]
[346744461,1735260635759,-500.0,0.0001162,2]
[346744462,1735260635769,-500.0,0.0001162,2]
[346744463,1735260635778,-500.0,0.0001162,2]
[346744464,1735260635787,-500.0,0.0001162,2]
[346744465,1735260635796,-500.0,0.0001162,2]
[346744466,1735260635806,-500.0,0.0001162,2]
[346744467,1735260635816,-500.0,0.0001162,2]
[346744468,1735260635825,-500.0,0.0001162,2]
[346744469,1735260635835,-500.0,0.0001162,2]
[346744470,1735260635844,-500.0,0.0001162,2]
[346744471,1735260635918,-500.0,0.0001162,2]
[346744472,1735260635927,-500.0,0.0001162,2]
[346744473,1735260635938,-715.98,0.0001162,2]
[346744474,1735260635947,-500.0,0.0001162,2]
[346744475,1735260635956,-500.0,0.0001162,2]
[346744476,1735260635966,-500.0,0.0001162,2]
[346744477,1735260635974,-917.05,0.00011893,2]
[346744478,1735260635983,-252.41468758,0.00011893,2]
[346744479,1735260635995,-247.58531242,0.00011893,2]
[346744480,1735260636004,-365.72969258,0.00011893,2]
[346744481,1735260636015,-134.27030742,0.00011893,2]
[346744482,1735260636026,-500.0,0.00011894,2]
[346744483,1735260636035,-199.42793876,0.00011894,2]
[346744484,1735260636047,-300.57206124,0.00011894,2]
[346744485,1735260636056,-442.13167938,0.00011894,2]
[346744486,1735260636065,-500.0,0.00011894,2]
[346744487,1735260636075,-514.94,0.00011894,2]
[346744488,1735260636084,-500.0,0.00011894,2]
[346744489,1735260636093,-500.0,0.00011894,2]
[346744490,1735260636103,-500.0,0.00011894,2]
[346744491,1735260636112,-500.0,0.00011894,2]
[346744492,1735260636122,-500.0,0.00011894,2]
[346744493,1735260636131,-500.0,0.00011894,2]
[346744494,1735260636145,-500.0,0.00011894,2]
[346744495,1735260636154,-500.0,0.00011894,2]
[346744496,1735260636163,-500.0,0.00011894,2]
[346744497,1735260636172,-500.0,0.00011894,2]
[346744498,1735260636182,-715.98,0.00011894,2]
[346744499,1735260636193,-500.0,0.00011894,2]
[346744500,1735260636202,-500.0,0.00011894,2]
[346744501,1735260636212,-917.05,0.00012167,2]
[346744502,1735260636222,-500.0,0.00012167,2]
[346744503,1735260636231,-500.0,0.00012167,2]
[346744504,1735260636240,-565.96,0.00012168,2]
[346744505,1735260636250,-300.12133938,0.00012168,2]
[346744506,1735260636262,-231.50866062,0.00012168,2]
[346744507,1735260636271,-500.0,0.00012168,2]
[346744508,1735260636281,-514.94,0.00012168,2]
[346744509,1735260636290,-500.0,0.00012168,2]
[346744510,1735260636299,-500.0,0.00012168,2]
[346744511,1735260636308,-500.0,0.00012168,2]
[346744512,1735260636319,-500.0,0.00012168,2]
[346744513,1735260636328,-500.0,0.00012168,2]
[346744514,1735260636337,-500.0,0.00012168,2]
[346744515,1735260636346,-500.0,0.00012168,2]
[346744516,1735260636355,-500.0,0.00012168,2]
[346744517,1735260636364,-500.0,0.00012168,2]
[346744518,1735260636385,-500.0,0.00012168,2]
[346744519,1735260636404,-715.98,0.00012168,2]
[346744520,1735260636422,-500.0,0.00012168,2]
[346744521,1735260636442,-917.05,0.00012441,2]
[346744522,1735260636461,-500.0,0.00012441,2]
[346744523,1735260636479,-434.23735309,0.00012441,2]
[346744524,1735260637034,-65.76264691,0.00012441,2]
[346744525,1735260637043,-514.94,0.00012442,2]
[346744526,1735260637053,-502.14,0.00012442,2]
[346744527,1735260637192,-500.0,0.00012442,2]
[346744528,1735260637211,-247.24,0.00012442,2]
[346744529,1735260637222,-500.0,0.00012442,2]
[346744530,1735260637232,-213.45480957,0.00012442,2]
[346744531,1735260637241,-612.53,0.00012442,2]
[346744532,1735260637250,-500.0,0.00012442,2]
[346744533,1735260637259,-715.98,0.00012442,2]
[346744534,1735260637268,-917.05,0.00012715,2]
[346744535,1735260637277,-500.0,0.00012715,2]
[346744536,1735260637288,-500.0,0.00012715,2]
[346744537,1735260637296,-514.94,0.00012716,2]
[346744538,1735260637305,-500.0,0.00012716,2]
[346744539,1735260637314,-500.0,0.00012716,2]
[346744540,1735260637323,-715.98,0.00012716,2]
[346744541,1735260637334,-420.0,0.0001276,2]
[346744542,1735260637343,-420.0,0.00012781,2]
[346744543,1735260637352,-500.0,0.00012952,2]
[346744544,1735260637362,-500.0,0.00012952,2]
[346744545,1735260637371,-500.0,0.00012952,2]
[346744546,1735260637380,-500.0,0.00012952,2]
[346744547,1735260637389,-500.0,0.00012952,2]
[346744548,1735260637398,-500.0,0.00012952,2]
[346744549,1735260637406,-500.0,0.00012952,2]
[346744550,1735260637416,-500.0,0.00012952,2]
[346744551,1735260637425,-163.03002671,0.00012952,2]
[346744580,1735260638822,-336.96997329,0.00012952,2]
[346744581,1735260638832,-500.0,0.00012952,2]
[346744582,1735260638842,-497.60775913,0.00012952,2]
[346744583,1735260638851,-500.0,0.00012952,2]
[346744584,1735260638861,-500.0,0.00012952,2]
[346744585,1735260638870,-17.03331334,0.00012953,2]
[346744586,1735260638912,-482.96668666,0.00012953,2]
[346744587,1735260638921,-500.0,0.00012953,2]
[346744588,1735260638931,-92.60766654,0.00012953,2]
[346744589,1735260638943,-407.39233346,0.00012953,2]
[346744590,1735260638953,-194.82209502,0.00012953,2]
[346744603,1735260645172,-305.17790498,0.00012953,2]
[346744604,1735260645182,-500.0,0.00012953,2]
[346744605,1735260645193,-500.0,0.00012953,2]
[346744606,1735260645203,-917.05,0.00012989,2]
[346744607,1735260645213,-500.0,0.00012989,2]
[346744608,1735260645222,-500.0,0.00012989,2]
[346744609,1735260645232,-514.94,0.0001299,2]
[346744610,1735260645243,-500.0,0.0001299,2]
[346744611,1735260645253,-715.98,0.0001299,2]
[346744612,1735260645263,-500.0,0.00013226,2]
[346744613,1735260645272,-500.0,0.00013226,2]
[346744614,1735260645281,-501.60660081,0.00013226,2]
[346744615,1735260645290,-500.0,0.00013226,2]
[346744616,1735260645299,-500.0,0.00013226,2]
[346744617,1735260645308,-500.0,0.00013226,2]
[346744618,1735260645317,-500.0,0.00013226,2]
[346744619,1735260645327,-500.0,0.00013226,2]
[346744620,1735260645336,-500.0,0.00013226,2]
[346744621,1735260645346,-500.0,0.00013226,2]
[346744622,1735260645355,-500.0,0.00013227,2]
[346744623,1735260645364,-500.0,0.00013227,2]
[346744624,1735260645373,-500.0,0.00013227,2]
[346744625,1735260645382,-917.05,0.00013263,2]
[346744626,1735260645392,-500.0,0.00013263,2]
[346744627,1735260645401,-500.0,0.00013263,2]
[346744628,1735260645423,-514.94,0.00013264,2]
[346744629,1735260645507,-500.0,0.00013264,2]
[346744630,1735260645517,-715.98,0.00013264,2]
[346744631,1735260645527,-500.0,0.00013273,2]
[346744632,1735260645537,-500.0,0.00013273,2]
[346744633,1735260645550,-500.0,0.000135,2]
[346744634,1735260645559,-500.0,0.000135,2]
[346744635,1735260645568,-500.0,0.000135,2]
[346744636,1735260645577,-500.0,0.000135,2]
[346744637,1735260645588,-637.72858949,0.000135,2]
[346744638,1735260645598,-500.0,0.000135,2]
[346744639,1735260645608,-500.0,0.000135,2]
[346744640,1735260645618,-500.0,0.000135,2]
[346744641,1735260645627,-500.0,0.000135,2]
[346744642,1735260645636,-343.7112671,0.00013501,2]
[346744643,1735260645645,-500.0,0.00013501,2]
[346744644,1735260645655,-500.0,0.00013501,2]
[346744645,1735260645664,-917.05,0.00013537,2]
[346744646,1735260645673,-500.0,0.00013537,2]
[346744647,1735260645683,-500.0,0.00013537,2]
[346744648,1735260645693,-514.94,0.00013538,2]
[346744649,1735260645702,-500.0,0.00013538,2]
[346744650,1735260645712,-715.98,0.00013538,2]
[346744651,1735260645721,-500.0,0.00013699,2]
[346744652,1735260645731,-500.0,0.00013699,2]
[346744653,1735260645740,-217.22384712,0.00013699,2]
[346744654,1735260645749,-1916.81235426,0.00013774,2]
[346744655,1735260645759,-509.68,0.00013774,2]
[346744656,1735260645768,-581.96,0.00013774,2]
[346744657,1735260645777,-500.0,0.00013774,2]
[346744658,1735260645786,-694.83,0.00013774,2]
[346744659,1735260645796,-500.0,0.00013774,2]
[346744660,1735260645805,-510.14,0.00013774,2]
[346744661,1735260645814,-500.0,0.00013774,2]
[346744662,1735260645824,-500.0,0.00013774,2]
[346744663,1735260645833,-500.0,0.00013774,2]
[346744664,1735260645843,-500.0,0.00013774,2]
[346744665,1735260645853,-500.0,0.00013774,2]
[346744666,1735260645862,-500.0,0.00013774,2]
[346744667,1735260645871,-500.0,0.00013774,2]
[346744668,1735260645880,-512.36,0.00013774,2]
[346744669,1735260645890,-501.89886658,0.00013774,2]
[346744670,1735260645899,-43.97243375,0.00013774,2]
[346744671,1735260645911,-456.02756625,0.00013774,2]
[346744672,1735260645920,-500.0,0.00013774,2]
[346744673,1735260645930,-500.0,0.00013775,2]
[346744674,1735260645941,-284.59,0.00013775,2]
[346744675,1735260645951,-500.0,0.00013775,2]
[346744676,1735260645960,-500.0,0.00013775,2]
[346744677,1735260645970,-500.0,0.00013775,2]
[346744678,1735260645980,-552.61108884,0.00013775,2]
[346744679,1735260645991,-500.0,0.00013775,2]
[346744680,1735260646000,-500.0,0.00013775,2]
[346744681,1735260646009,-204.85745819,0.00013775,2]
[346744682,1735260646019,-500.0,0.00013775,2]
[346744683,1735260646028,-500.0,0.00013775,2]
[346744684,1735260646037,-500.0,0.00013775,2]
[346744685,1735260646046,-500.0,0.00013775,2]
[346744686,1735260646055,-186.65639402,0.00013775,2]
[346744687,1735260646065,-500.0,0.00013775,2]
[346744688,1735260646076,-500.0,0.00013775,2]
[346744689,1735260646086,-500.0,0.00013775,2]
[346744690,1735260646095,-249.04415472,0.00013775,2]
[346744691,1735260646104,-500.0,0.00013775,2]
[346744693,1735260646114,-364.71832481,0.00013775,2]
[346744695,1735260646123,-500.0,0.00013775,2]
[346744696,1735260646132,-500.0,0.00013775,2]
[346744698,1735260646142,-500.0,0.00013775,2]
[346744700,1735260646151,-500.0,0.00013775,2]
[346744702,1735260646163,-500.0,0.00013775,2]
[346744704,1735260646173,-500.0,0.00013775,2]
[346744705,1735260646183,-500.0,0.00013775,2]
[346744706,1735260646195,-500.0,0.00013775,2]
[346744707,1735260646206,-500.0,0.00013775,2]
[346744708,1735260646215,-500.0,0.00013775,2]
[346744709,1735260646224,-500.0,0.00013775,2]
[346744710,1735260646234,-500.0,0.00013775,2]
[346744711,1735260646244,-500.0,0.00013775,2]
[346744712,1735260646254,-500.0,0.00013775,2]
[346744713,1735260646263,-500.0,0.00013775,2]
[346744714,1735260646272,-500.0,0.00013775,2]
[346744715,1735260646282,-500.0,0.00013775,2]
[346744716,1735260646291,-500.0,0.00013775,2]
[346744717,1735260646300,-612.97449174,0.00013775,2]
[346744718,1735260646309,-500.0,0.00013775,2]
[346744719,1735260646318,-500.0,0.00013775,2]
[346744720,1735260646328,-503.92428369,0.00013775,2]
[346744721,1735260646337,-500.0,0.00013775,2]
[346744722,1735260646346,-500.0,0.00013775,2]
[346744723,1735260646355,-500.0,0.00013775,2]
[346744724,1735260646366,-500.0,0.00013775,2]
[346744725,1735260646376,-500.0,0.00013775,2]
[346744726,1735260646385,-325.30092944,0.00013775,2]
[346744727,1735260646394,-500.0,0.00013775,2]
[346744728,1735260646403,-500.0,0.00013775,2]
[346744729,1735260646412,-500.0,0.00013775,2]
[346744730,1735260646421,-500.0,0.00013775,2]
[346744731,1735260646431,-500.0,0.00013775,2]
[346744732,1735260646441,-500.0,0.00013775,2]
[346744733,1735260646450,-500.0,0.00013775,2]
[346744734,1735260646459,-500.0,0.00013775,2]
[346744735,1735260646469,-500.0,0.00013775,2]
[346744736,1735260646479,-500.0,0.00013775,2]
[346744737,1735260646488,-500.0,0.00013775,2]
[346744738,1735260646497,-500.0,0.00013775,2]
[346744739,1735260646507,-361.03802067,0.00013775,2]
[346744740,1735260646516,-500.0,0.00013775,2]
[346744741,1735260646525,-506.57882795,0.00013775,2]
[346744742,1735260646534,-500.0,0.00013775,2]
[346744743,1735260646543,-500.0,0.00013775,2]
[346744744,1735260646553,-500.0,0.00013775,2]
[346744745,1735260646563,-500.0,0.00013775,2]
[346744746,1735260646573,-228.23623091,0.00013775,2]
[346744747,1735260646583,-500.0,0.00013775,2]
[346744748,1735260646592,-500.0,0.00013775,2]
[346744749,1735260646601,-500.0,0.00013775,2]
[346744750,1735260646611,-500.0,0.00013775,2]
[346744751,1735260646620,-500.0,0.00013775,2]
[346744752,1735260646629,-500.0,0.00013775,2]
[346744753,1735260646638,-500.0,0.00013775,2]
[346744754,1735260646647,-500.0,0.00013775,2]
[346744755,1735260646657,-500.0,0.00013775,2]
[346744756,1735260646667,-500.0,0.00013775,2]
[346744757,1735260646676,-4012.62,0.00013775,2]
[346744758,1735260646685,-500.0,0.00013775,2]
[346744759,1735260646695,-500.0,0.00013775,2]
[346744761,1735260646704,-500.0,0.00013775,2]
[346744762,1735260646713,-500.0,0.00013775,2]
[346744763,1735260646723,-642.54526808,0.00013775,2]
[346744764,1735260646731,-500.0,0.00013775,2]
[346744765,1735260646740,-500.0,0.00013775,2]
[346744766,1735260646749,-500.0,0.00013775,2]
[346744767,1735260646759,-500.0,0.00013775,2]
[346744768,1735260646769,-151.0,0.000138,2]
[346744769,1735260646778,-917.05,0.00013811,2]
[346744770,1735260646787,-193.05083744,0.00013811,2]
[346744771,1735260646796,-500.0,0.00013811,2]
[346744772,1735260646805,-343.91779393,0.00013811,2]
[346744773,1735260646815,-500.0,0.00013812,2]
[346744774,1735260646825,-500.0,0.00013812,2]
[346744775,1735260646834,-500.0,0.00013812,2]
[346744776,1735260646844,-500.0,0.00013812,2]
[346744777,1735260646853,-500.0,0.00013812,2]
[346744778,1735260646864,-5409.76,0.00013812,2]
[346744779,1735260646873,-1644.65,0.00013812,2]
[346744780,1735260646883,-500.0,0.00013812,2]
[346744781,1735260646892,-500.0,0.00013812,2]
[346744782,1735260646901,-514.94,0.00013812,2]
[346744783,1735260646911,-500.0,0.00013812,2]
[346744784,1735260646985,-715.98,0.00013812,2]
[346744785,1735260646995,-300.0,0.000139,3]
[346744786,1735260647004,-300.0,0.000139,4]
[346744787,1735260647013,-151.0,0.000139,2]
[346744788,1735260647023,-500.0,0.0001391,2]
[346744789,1735260647032,-500.0,0.00013913,2]
[346744790,1735260647041,-590.42667091,0.00013941,2]
[346744791,1735260647051,-500.0,0.00013973,2]
[346744792,1735260647060,-500.0,0.00013973,2]
[346744793,1735260647069,-516.5188844,0.00013973,2]
[346744794,1735260647078,-500.0,0.00013994,2]
[346744795,1735260647088,-500.0,0.00013994,2]
[346744796,1735260647097,-500.0,0.00013994,2]
[346744797,1735260647107,-500.0,0.00013994,2]
[346744798,1735260647116,-500.0,0.00013994,2]
[346744799,1735260647128,-500.0,0.00013994,2]
[346744800,1735260647138,-500.0,0.00013994,2]
[346744801,1735260647147,-500.0,0.00013994,2]
[346744802,1735260647159,-499.3553919,0.00013994,2]
[346744803,1735260647168,-500.0,0.00013994,2]
[346744804,1735260647177,-500.0,0.00013994,2]
[346744805,1735260647187,-500.0,0.00013994,2]
[346744806,1735260647199,-606.66878907,0.00013994,2]
[346744807,1735260647208,-500.0,0.00013994,2]
[346744808,1735260647218,-500.0,0.00013994,2]
[346744809,1735260647227,-500.0,0.00013994,2]
[346744810,1735260647236,-500.0,0.00013994,2]
[346744811,1735260647246,-224.15800279,0.00013994,2]
[346744812,1735260647255,-500.0,0.00013994,2]
[346744813,1735260647265,-500.0,0.00013994,2]
[346744814,1735260647274,-500.0,0.00013994,2]
[346744815,1735260647283,-500.0,0.00013994,2]
[346744816,1735260647293,-500.0,0.00013994,2]
[346744817,1735260647303,-500.0,0.00013994,2]
[346744818,1735260647312,-500.0,0.00013994,2]
[346744819,1735260647321,-500.0,0.00013994,2]
[346744820,1735260647331,-500.0,0.00013994,2]
[346744821,1735260647341,-500.0,0.00013994,2]
[346744822,1735260647350,-500.0,0.00013994,2]
[346744823,1735260647360,-500.0,0.00013994,2]
[346744824,1735260647369,-500.0,0.00013994,2]
[346744825,1735260647378,-466.01786884,0.00013994,2]
[346744826,1735260647388,-500.0,0.00013994,2]
[346744827,1735260647397,-500.0,0.00013994,2]
[346744828,1735260647406,-500.0,0.00013994,2]
[346744829,1735260647416,-500.0,0.00013994,2]
[346744830,1735260647425,-500.0,0.00013994,2]
[346744831,1735260647435,-500.0,0.00013994,2]
[346744832,1735260647446,-500.0,0.00013994,2]
[346744833,1735260647455,-500.0,0.00013994,2]
[346744834,1735260647464,-500.0,0.00013994,2]
[346744835,1735260647473,-2678.36,0.00013994,2]
[346744836,1735260647483,-560.0,0.00013994,2]
[346744837,1735260647492,-500.0,0.00013994,2]
[346744838,1735260647501,-500.0,0.00013994,2]
[346744839,1735260647510,-500.0,0.00013994,2]
[346744840,1735260647519,-500.0,0.00013994,2]
[346744841,1735260647529,-500.0,0.00013994,2]
[346744842,1735260647539,-3706.1,0.00013995,2]
[346744843,1735260647550,-500.0,0.00013996,2]
[346744844,1735260647559,-500.0,0.00013996,2]
[346744845,1735260647568,-500.0,0.00013996,2]
[346744846,1735260647577,-500.0,0.00013996,2]
[346744847,1735260647587,-500.0,0.00013996,2]
[346744848,1735260647596,-500.0,0.00013996,2]
[346744849,1735260647605,-599.92,0.00013996,2]
[346744850,1735260647615,-500.0,0.00013996,2]
[346744851,1735260647624,-500.0,0.00013996,2]
[346744852,1735260647633,-508.71798768,0.00013996,2]
[346744853,1735260647643,-372.38169195,0.00013996,2]
[346744854,1735260647652,-500.71577802,0.00013996,2]
[346744855,1735260647661,-500.0,0.00013996,2]
[346744856,1735260647670,-500.0,0.00013996,2]
[346744857,1735260647679,-500.0,0.00013996,2]
[346744858,1735260647688,-500.0,0.00013996,2]
[346744859,1735260647701,-500.0,0.00013996,2]
[346744860,1735260647711,-501.84487671,0.00013996,2]
[346744861,1735260647720,-8255.27577089,0.00013996,2]
[346744862,1735260647730,-500.0,0.00013996,2]
[346744863,1735260647739,-500.0,0.00013996,2]
[346744864,1735260647751,-783.27,0.00013997,2]
[346744865,1735260647761,-500.0,0.00013997,2]
[346744866,1735260647771,-500.0,0.00013997,2]
[346744867,1735260647780,-500.0,0.00013997,2]
[346744868,1735260647790,-478.0,0.00014013,2]
[346744869,1735260647800,-543.25438974,0.00014047,2]
[346744870,1735260647809,-500.0,0.00014048,2]
[346744871,1735260647819,-500.0,0.00014048,2]
[346744872,1735260647828,-500.0,0.00014048,2]
[346744873,1735260647838,-500.0,0.00014048,2]
[346744874,1735260647847,-500.0,0.00014048,2]
[346744875,1735260647856,-500.0,0.00014048,2]
[346744876,1735260647866,-500.0,0.00014048,2]
[346744877,1735260647875,-500.0,0.00014048,2]
[346744878,1735260647885,-97.49757142,0.00014048,2]
[346744879,1735260647926,-402.50242858,0.00014048,2]
[346744880,1735260647935,-498.01263895,0.00014048,2]
[346744881,1735260647946,-500.0,0.00014048,2]
[346744882,1735260647956,-500.0,0.00014048,2]
[346744883,1735260647965,-720.88,0.00014048,2]
[346744884,1735260647973,-500.0,0.00014048,2]
[346744885,1735260647982,-500.0,0.00014048,2]
[346744886,1735260647991,-635.92,0.00014048,2]
[346744887,1735260648000,-500.0,0.00014048,2]
[346744888,1735260648009,-500.0,0.00014048,2]
[346744889,1735260648018,-500.0,0.00014048,2]
[346744890,1735260648027,-500.0,0.00014048,2]
[346744891,1735260648037,-500.0,0.00014048,2]
[346744892,1735260648046,-500.0,0.00014048,2]
[346744893,1735260648055,-1106.95,0.00014048,2]
[346744894,1735260648065,-500.0,0.00014048,2]
[346744895,1735260648074,-500.0,0.00014048,2]
[346744896,1735260648082,-612.8,0.00014048,2]
[346744897,1735260648091,-500.0,0.00014048,2]
[346744898,1735260648100,-500.0,0.00014048,2]
[346744899,1735260648110,-400.35331469,0.00014048,2]
[346744900,1735260648122,-99.64668531,0.00014048,2]
[346744901,1735260648131,-500.0,0.00014048,2]
[346744902,1735260648140,-500.0,0.00014048,2]
[346744903,1735260648149,-500.0,0.00014048,2]
[346744904,1735260648160,-500.0,0.00014048,2]
[346744905,1735260648171,-500.0,0.00014048,2]
[346744906,1735260648180,-500.0,0.00014048,2]
[346744907,1735260648189,-503.74578435,0.00014048,2]
[346744908,1735260648201,-500.0,0.00014048,2]
[346744909,1735260648211,-596.5,0.00014048,2]
[346744910,1735260648220,-500.0,0.00014048,2]
[346744911,1735260648230,-14242.44,0.00014048,2]
[346744912,1735260648240,-509.68,0.00014048,2]
[346744913,1735260648312,-581.96,0.00014048,2]
[346744914,1735260648321,-500.0,0.00014048,2]
[346744915,1735260648331,-694.83,0.00014048,2]
[346744916,1735260648340,-500.0,0.00014048,2]
[346744917,1735260648349,-510.14,0.00014048,2]
[346744918,1735260648359,-500.0,0.00014048,2]
[346744919,1735260648368,-500.0,0.00014048,2]
[346744920,1735260648378,-500.0,0.00014048,2]
[346744921,1735260648387,-500.0,0.00014048,2]
[346744922,1735260648396,-500.0,0.00014048,2]
[346744923,1735260648405,-500.0,0.00014048,2]
[346744924,1735260648415,-500.0,0.00014048,2]
[346744925,1735260648424,-500.0,0.00014048,2]
[346744926,1735260648433,-218.89,0.00014049,2]
[346744927,1735260648444,-637.75,0.00014049,2]
[346744928,1735260648453,-500.0,0.00014049,2]
[346744929,1735260648462,-500.0,0.00014049,2]
[346744930,1735260648471,-500.0,0.00014049,2]
[346744931,1735260648480,-500.0,0.00014049,2]
[346744932,1735260648489,-500.0,0.00014049,2]
[346744933,1735260648498,-500.0,0.00014049,2]
[346744934,1735260648507,-500.0,0.00014049,2]
[346744935,1735260648515,-500.0,0.00014049,2]